[Event "January 2 Late 2024"]
[Site "https://www.chess.com"]
[Date "2024.01.02"]
[Round "2"]
[White "Sroczynski, Maciej"]
[Black "Samant Aditya S"]
[Result "0-1"]
[Board "117"]
[TimeControl "180+1"]
[WhiteFideId "1121472"]
[BlackFideId "35080580"]
[WhiteElo "2407"]
[BlackElo "2719"]
[WhiteTeam "POL"]
[BlackTeam "IND"]
[WhiteClock "0:00:12"]
[BlackClock "0:00:20"]

1. d4 {[%clk 0:03:00]}  d6 {[%clk 0:03:00]} 2. Nf3 {[%clk 0:02:57]}  g6 {[%clk 0:02:59]} 3. c4 {[%clk 0:02:55]}  Bg7 {[%clk 0:03:00]} 4. Nc3 {[%clk 0:02:55]}  Nc6 {[%clk 0:03:00]} 5. d5 {[%clk 0:02:50]}  Ne5 {[%clk 0:02:54]} 6. Nd4 {[%clk 0:02:50]}  Nf6 {[%clk 0:02:50]} 7. e4 {[%clk 0:02:50]}  O-O {[%clk 0:02:49]} 8. Be2 {[%clk 0:02:48]}  c5 {[%clk 0:02:48]} 9. Nc2 {[%clk 0:02:48]}  e6 {[%clk 0:02:47]} 10. O-O {[%clk 0:02:47]}  exd5 {[%clk 0:02:47]} 11. cxd5 {[%clk 0:02:45]}  Re8 {[%clk 0:02:47]} 12. a4 {[%clk 0:02:38]}  a6 {[%clk 0:02:43]} 13. f3 {[%clk 0:02:31]}  b6 {[%clk 0:02:38]} 14. Bg5 {[%clk 0:02:29]}  h6 {[%clk 0:02:36]} 15. Bh4 {[%clk 0:02:29]}  g5 {[%clk 0:02:37]} 16. Bf2 {[%clk 0:02:25]}  Nh5 {[%clk 0:02:37]} 17. g3 {[%clk 0:02:22]}  Bh3 {[%clk 0:02:36]} 18. Re1 {[%clk 0:02:21]}  Ng6 {[%clk 0:02:28]} 19. f4 {[%clk 0:02:04]}  Nf6 {[%clk 0:02:28]} 20. f5 {[%clk 0:01:51]}  Ne5 {[%clk 0:02:16]} 21. Ne3 {[%clk 0:01:44]}  h5 {[%clk 0:01:53]} 22. Bxh5 {[%clk 0:01:24]}  g4 {[%clk 0:01:52]} 23. Bxf7+ {[%clk 0:01:08]}  Kxf7 {[%clk 0:01:34]} 24. Re2 {[%clk 0:01:08]}  Nf3+ {[%clk 0:01:17]} 25. Kh1 {[%clk 0:01:08]}  Nxe4 {[%clk 0:01:09]} 26. Nxe4 {[%clk 0:01:06]}  Rxe4 {[%clk 0:01:10]} 27. Nc4 {[%clk 0:01:03]}  Rxe2 {[%clk 0:00:52]} 28. Qxe2 {[%clk 0:01:03]}  Be5 {[%clk 0:00:53]} 29. Nxe5+ {[%clk 0:00:53]}  dxe5 {[%clk 0:00:54]} 30. Rd1 {[%clk 0:00:49]}  Qh8 {[%clk 0:00:37]} 31. Be3 {[%clk 0:00:41]}  Qh7 {[%clk 0:00:32]} 32. d6 {[%clk 0:00:35]}  Qxf5 {[%clk 0:00:32]} 33. Bg1 {[%clk 0:00:30]}  Rd8 {[%clk 0:00:26]} 34. a5 {[%clk 0:00:30]}  b5 {[%clk 0:00:25]} 35. Qe3 {[%clk 0:00:24]}  Kg6 {[%clk 0:00:19]} 36. Qxc5 {[%clk 0:00:22]}  Qe4 {[%clk 0:00:19]} 37. Qe3 {[%clk 0:00:21]}  Qxe3 {[%clk 0:00:16]} 38. Bxe3 {[%clk 0:00:21]}  Kf5 {[%clk 0:00:16]} 39. d7 {[%clk 0:00:20]}  Ke6 {[%clk 0:00:16]} 40. Bb6 {[%clk 0:00:15]}  Rxd7 {[%clk 0:00:16]} 41. Rxd7 {[%clk 0:00:13]}  Kxd7 {[%clk 0:00:17]} 42. b4 {[%clk 0:00:14]}  Kc6 {[%clk 0:00:18]} 43. Bc5 {[%clk 0:00:14]}  Kd5 {[%clk 0:00:18]} 44. Bf8 {[%clk 0:00:14]}  Kc4 {[%clk 0:00:19]} 45. Be7 {[%clk 0:00:12]}  Kd3 {[%clk 0:00:20]} 0-1

[Event "January 2 Late 2024"]
[Site "https://www.chess.com"]
[Date "2024.01.02"]
[Round "2"]
[White "Makridis, Dimitrios"]
[Black "Petr, Jan"]
[Result "1-0"]
[Board "118"]
[TimeControl "180+1"]
[WhiteFideId "25864475"]
[BlackFideId "345784"]
[WhiteElo "2711"]
[BlackElo "2381"]
[WhiteTeam "GRE"]
[BlackTeam "CZE"]
[WhiteClock "0:01:29"]
[BlackClock "0:00:03"]

1. e4 {[%clk 0:02:55]}  e5 {[%clk 0:02:59]} 2. Nf3 {[%clk 0:02:53]}  Nc6 {[%clk 0:02:59]} 3. Bc4 {[%clk 0:02:53]}  Nf6 {[%clk 0:02:59]} 4. d3 {[%clk 0:02:52]}  Be7 {[%clk 0:02:59]} 5. O-O {[%clk 0:02:52]}  O-O {[%clk 0:03:00]} 6. Re1 {[%clk 0:02:48]}  d6 {[%clk 0:03:00]} 7. h3 {[%clk 0:02:48]}  Na5 {[%clk 0:02:34]} 8. Nbd2 {[%clk 0:02:47]}  Nxc4 {[%clk 0:02:29]} 9. Nxc4 {[%clk 0:02:48]}  h6 {[%clk 0:02:26]} 10. c3 {[%clk 0:02:47]}  Be6 {[%clk 0:02:18]} 11. Ne3 {[%clk 0:02:45]}  c6 {[%clk 0:02:15]} 12. Qe2 {[%clk 0:02:39]}  g6 {[%clk 0:01:50]} 13. d4 {[%clk 0:02:33]}  Qc7 {[%clk 0:01:33]} 14. Nc4 {[%clk 0:02:26]}  Nxe4 {[%clk 0:01:13]} 15. Bxh6 {[%clk 0:02:23]}  Rfe8 {[%clk 0:01:11]} 16. dxe5 {[%clk 0:02:22]}  d5 {[%clk 0:01:06]} 17. Ncd2 {[%clk 0:02:21]}  Nxd2 {[%clk 0:01:00]} 18. Qxd2 {[%clk 0:02:22]}  Bf5 {[%clk 0:00:55]} 19. Nd4 {[%clk 0:02:14]}  Be4 {[%clk 0:00:53]} 20. f3 {[%clk 0:02:09]}  c5 {[%clk 0:00:30]} 21. fxe4 {[%clk 0:02:01]}  cxd4 {[%clk 0:00:30]} 22. exd5 {[%clk 0:02:02]}  dxc3 {[%clk 0:00:30]} 23. bxc3 {[%clk 0:02:03]}  Bc5+ {[%clk 0:00:29]} 24. Kh1 {[%clk 0:02:00]}  Rxe5 {[%clk 0:00:27]} 25. c4 {[%clk 0:01:59]}  Rae8 {[%clk 0:00:26]} 26. Rxe5 {[%clk 0:01:58]}  Qxe5 {[%clk 0:00:26]} 27. Rf1 {[%clk 0:01:56]}  Qe2 {[%clk 0:00:23]} 28. Qf4 {[%clk 0:01:51]}  f5 {[%clk 0:00:18]} 29. Rb1 {[%clk 0:01:44]}  b6 {[%clk 0:00:13]} 30. Qc7 {[%clk 0:01:39]}  Re7 {[%clk 0:00:12]} 31. Qb8+ {[%clk 0:01:39]}  Kh7 {[%clk 0:00:11]} 32. Bg5 {[%clk 0:01:38]}  Qe4 {[%clk 0:00:08]} 33. Rf1 {[%clk 0:01:34]}  Rf7 {[%clk 0:00:08]} 34. Qf4 {[%clk 0:01:31]}  Qc2 {[%clk 0:00:05]} 35. d6 {[%clk 0:01:29]}  Rd7 {[%clk 0:00:05]} 36. Qh4+ {[%clk 0:01:27]}  Kg7 {[%clk 0:00:05]} 37. Bf6+ {[%clk 0:01:28]}  Kf7 {[%clk 0:00:03]} 38. Be5 {[%clk 0:01:29]}  Ke6 {[%clk 0:00:03]} 39. Qf6# {[%clk 0:01:29]} 1-0

[Event "January 2 Late 2024"]
[Site "https://www.chess.com"]
[Date "2024.01.02"]
[Round "2"]
[White "Zavgorodniy, Sergiy"]
[Black "Fernandez Hernandez, Gerardo"]
[Result "0-1"]
[Board "120"]
[TimeControl "180+1"]
[WhiteFideId "14110148"]
[BlackFideId "2207400"]
[WhiteElo "2626"]
[BlackElo "2311"]
[WhiteTeam "UKR"]
[BlackTeam "ESP"]
[WhiteClock "0:00:00"]
[BlackClock "0:00:01"]

1. d4 {[%clk 0:03:00]}  Nf6 {[%clk 0:02:59]} 2. c4 {[%clk 0:02:48]}  c5 {[%clk 0:02:58]} 3. d5 {[%clk 0:02:48]}  b5 {[%clk 0:02:59]} 4. cxb5 {[%clk 0:02:44]}  a6 {[%clk 0:02:58]} 5. e3 {[%clk 0:02:43]}  e6 {[%clk 0:02:57]} 6. Nc3 {[%clk 0:02:42]}  Bb7 {[%clk 0:02:55]} 7. e4 {[%clk 0:02:41]}  exd5 {[%clk 0:02:41]} 8. e5 {[%clk 0:02:38]}  Ne4 {[%clk 0:02:38]} 9. Nxd5 {[%clk 0:02:37]}  Qa5+ {[%clk 0:02:30]} 10. b4 {[%clk 0:02:23]}  cxb4 {[%clk 0:02:19]} 11. Bc4 {[%clk 0:02:05]}  b3+ {[%clk 0:02:02]} 12. Kf1 {[%clk 0:02:04]}  axb5 {[%clk 0:02:00]} 13. Bxb3 {[%clk 0:02:00]}  Bc5 {[%clk 0:01:35]} 14. Nh3 {[%clk 0:01:51]}  O-O {[%clk 0:01:27]} 15. Bf4 {[%clk 0:01:29]}  Nc6 {[%clk 0:01:20]} 16. Rc1 {[%clk 0:01:22]}  Nd4 {[%clk 0:01:03]} 17. Qg4 {[%clk 0:01:03]}  Nxb3 {[%clk 0:00:50]} 18. Nf6+ {[%clk 0:00:58]}  Nxf6 {[%clk 0:00:36]} 19. exf6 {[%clk 0:00:59]}  g6 {[%clk 0:00:33]} 20. axb3 {[%clk 0:00:50]}  Qd8 {[%clk 0:00:20]} 21. Rxc5 {[%clk 0:00:45]}  Ra1+ {[%clk 0:00:20]} 22. Rc1 {[%clk 0:00:45]}  Rxc1+ {[%clk 0:00:19]} 23. Bxc1 {[%clk 0:00:46]}  Qxf6 {[%clk 0:00:18]} 24. Ng5 {[%clk 0:00:35]}  Rc8 {[%clk 0:00:15]} 25. Qd1 {[%clk 0:00:28]}  b4 {[%clk 0:00:10]} 26. h4 {[%clk 0:00:25]}  Qc6 {[%clk 0:00:10]} 27. Ke2 {[%clk 0:00:13]}  Qxg2 {[%clk 0:00:05]} 28. Rg1 {[%clk 0:00:11]}  Qc6 {[%clk 0:00:01]} 29. Be3 {[%clk 0:00:00]}  Ba6+ {[%clk 0:00:01]} 0-1

[Event "January 2 Late 2024"]
[Site "https://www.chess.com"]
[Date "2024.01.02"]
[Round "2"]
[White "Biernacki, Mark"]
[Black "CamillaEffect"]
[Result "0-1"]
[Board "121"]
[TimeControl "180+1"]
[WhiteFideId "2082322"]
[WhiteElo "2304"]
[BlackElo "2624"]
[WhiteTeam "USA"]
[WhiteClock "0:00:16"]
[BlackClock "0:00:12"]

1. e4 {[%clk 0:02:59]}  e5 {[%clk 0:03:00]} 2. Nf3 {[%clk 0:02:59]}  Nc6 {[%clk 0:03:00]} 3. Bc4 {[%clk 0:02:59]}  Nf6 {[%clk 0:03:01]} 4. d3 {[%clk 0:02:57]}  Be7 {[%clk 0:03:01]} 5. c3 {[%clk 0:02:51]}  d6 {[%clk 0:03:01]} 6. Bg5 {[%clk 0:02:44]}  O-O {[%clk 0:03:00]} 7. a4 {[%clk 0:02:39]}  h6 {[%clk 0:02:58]} 8. Bh4 {[%clk 0:02:39]}  a6 {[%clk 0:02:36]} 9. Nbd2 {[%clk 0:02:34]}  Bg4 {[%clk 0:02:15]} 10. h3 {[%clk 0:02:31]}  Bh5 {[%clk 0:02:15]} 11. g4 {[%clk 0:02:23]}  Bg6 {[%clk 0:02:14]} 12. Rg1 {[%clk 0:02:13]}  Nd7 {[%clk 0:01:56]} 13. Bxe7 {[%clk 0:02:10]}  Qxe7 {[%clk 0:01:57]} 14. h4 {[%clk 0:02:09]}  Nb6 {[%clk 0:01:31]} 15. Bb3 {[%clk 0:02:01]}  a5 {[%clk 0:01:30]} 16. Qe2 {[%clk 0:01:57]}  Rad8 {[%clk 0:01:30]} 17. h5 {[%clk 0:01:45]}  Bh7 {[%clk 0:01:30]} 18. g5 {[%clk 0:01:44]}  hxg5 {[%clk 0:01:31]} 19. Nxg5 {[%clk 0:01:43]}  d5 {[%clk 0:01:30]} 20. Qg4 {[%clk 0:01:37]}  Qf6 {[%clk 0:01:26]} 21. O-O-O {[%clk 0:00:58]}  d4 {[%clk 0:00:47]} 22. Nxh7 {[%clk 0:00:48]}  Kxh7 {[%clk 0:00:46]} 23. Rdf1 {[%clk 0:00:48]}  dxc3 {[%clk 0:00:45]} 24. bxc3 {[%clk 0:00:47]}  Rxd3 {[%clk 0:00:46]} 25. f4 {[%clk 0:00:45]}  exf4 {[%clk 0:00:35]} 26. Rxf4 {[%clk 0:00:45]}  Qxc3+ {[%clk 0:00:31]} 27. Bc2 {[%clk 0:00:45]}  Qxd2+ {[%clk 0:00:25]} 28. Kb1 {[%clk 0:00:45]}  Qb4+ {[%clk 0:00:24]} 29. Kc1 {[%clk 0:00:45]}  Qa3+ {[%clk 0:00:17]} 30. Kb1 {[%clk 0:00:44]}  Rb3+ {[%clk 0:00:18]} 31. Bxb3 {[%clk 0:00:44]}  Qxb3+ {[%clk 0:00:19]} 32. Kc1 {[%clk 0:00:44]}  Qc3+ {[%clk 0:00:19]} 33. Kb1 {[%clk 0:00:45]}  Nc4 {[%clk 0:00:15]} 34. Rg2 {[%clk 0:00:16]}  Na3+ {[%clk 0:00:12]} 35. Ka2 {[%clk 0:00:16]}  Nb4# {[%clk 0:00:12]} 0-1

[Event "January 2 Late 2024"]
[Site "https://www.chess.com"]
[Date "2024.01.02"]
[Round "2"]
[White "Curtis, John"]
[Black "Melian, Juan Sebastian"]
[Result "0-1"]
[Board "123"]
[TimeControl "180+1"]
[WhiteFideId "3200256"]
[BlackFideId "3706575"]
[WhiteElo "2221"]
[BlackElo "2598"]
[WhiteTeam "AUS"]
[BlackTeam "PAR"]
[WhiteClock "0:00:00"]
[BlackClock "0:00:13"]

1. d4 {[%clk 0:03:00]}  g6 {[%clk 0:02:57]} 2. Nf3 {[%clk 0:03:00]}  Bg7 {[%clk 0:02:58]} 3. g3 {[%clk 0:02:59]}  d6 {[%clk 0:02:59]} 4. Bg2 {[%clk 0:02:59]}  Nc6 {[%clk 0:02:59]} 5. O-O {[%clk 0:02:59]}  Bd7 {[%clk 0:03:00]} 6. c4 {[%clk 0:02:53]}  Qc8 {[%clk 0:02:59]} 7. Re1 {[%clk 0:02:49]}  Bh3 {[%clk 0:02:51]} 8. Bh1 {[%clk 0:02:48]}  h5 {[%clk 0:02:51]} 9. Nc3 {[%clk 0:02:39]}  h4 {[%clk 0:02:47]} 10. d5 {[%clk 0:02:19]}  Ne5 {[%clk 0:02:46]} 11. Nxe5 {[%clk 0:02:18]}  Bxe5 {[%clk 0:02:47]} 12. Be3 {[%clk 0:02:02]}  hxg3 {[%clk 0:02:10]} 13. hxg3 {[%clk 0:01:52]}  Nf6 {[%clk 0:01:48]} 14. Bg5 {[%clk 0:01:22]}  Qg4 {[%clk 0:01:02]} 15. Bxf6 {[%clk 0:00:55]}  Bxf6 {[%clk 0:00:39]} 16. e3 {[%clk 0:00:35]}  Qg5 {[%clk 0:00:37]} 17. Ne4 {[%clk 0:00:35]}  Qh6 {[%clk 0:00:38]} 18. Nxf6+ {[%clk 0:00:34]}  exf6 {[%clk 0:00:38]} 19. Qf3 {[%clk 0:00:27]}  f5 {[%clk 0:00:24]} 20. Bg2 {[%clk 0:00:24]}  Bg4 {[%clk 0:00:18]} 21. Qf4 {[%clk 0:00:24]}  Qh2+ {[%clk 0:00:17]} 22. Kf1 {[%clk 0:00:25]}  O-O-O {[%clk 0:00:13]} 23. f3 {[%clk 0:00:23]}  Bh3 {[%clk 0:00:12]} 24. Ke2 {[%clk 0:00:22]}  Qxg2+ {[%clk 0:00:11]} 25. Kd3 {[%clk 0:00:23]}  Qxb2 {[%clk 0:00:10]} 26. Qd4 {[%clk 0:00:23]}  Qxd4+ {[%clk 0:00:10]} 27. Kxd4 {[%clk 0:00:23]}  Rde8 {[%clk 0:00:10]} 28. Rg1 {[%clk 0:00:22]}  g5 {[%clk 0:00:09]} 29. a4 {[%clk 0:00:21]}  g4 {[%clk 0:00:09]} 30. f4 {[%clk 0:00:21]}  Re4+ {[%clk 0:00:10]} 31. Kd3 {[%clk 0:00:22]}  Rhe8 {[%clk 0:00:11]} 32. Rae1 {[%clk 0:00:21]}  c6 {[%clk 0:00:11]} 33. Rh1 {[%clk 0:00:21]}  cxd5 {[%clk 0:00:11]} 34. cxd5 {[%clk 0:00:20]}  Kd7 {[%clk 0:00:12]} 35. Rc1 {[%clk 0:00:20]}  Rc8 {[%clk 0:00:12]} 36. Rb1 {[%clk 0:00:21]}  b6 {[%clk 0:00:12]} 37. a5 {[%clk 0:00:20]}  Rb8 {[%clk 0:00:10]} 38. axb6 {[%clk 0:00:20]}  axb6 {[%clk 0:00:11]} 39. Ra1 {[%clk 0:00:20]}  Rb7 {[%clk 0:00:12]} 40. Rhc1 {[%clk 0:00:19]}  b5 {[%clk 0:00:12]} 41. Rc6 {[%clk 0:00:19]}  Rc7 {[%clk 0:00:13]} 42. Raa6 {[%clk 0:00:19]}  Bf1+ {[%clk 0:00:11]} 43. Kd2 {[%clk 0:00:17]}  Rxc6 {[%clk 0:00:12]} 44. dxc6+ {[%clk 0:00:17]}  Kc7 {[%clk 0:00:12]} 45. Ra7+ {[%clk 0:00:17]}  Kxc6 {[%clk 0:00:13]} 46. Rxf7 {[%clk 0:00:17]}  b4 {[%clk 0:00:13]} 47. Rxf5 {[%clk 0:00:18]}  b3 {[%clk 0:00:13]} 48. Ra5 {[%clk 0:00:17]}  b2 {[%clk 0:00:11]} 49. Kc2 {[%clk 0:00:17]}  Rb4 {[%clk 0:00:11]} 50. Ra6+ {[%clk 0:00:10]}  Kb5 {[%clk 0:00:11]} 51. Ra1 {[%clk 0:00:07]}  bxa1=Q {[%clk 0:00:12]} 52. Kd2 {[%clk 0:00:03]}  Rb2+ {[%clk 0:00:11]} 53. Kc3 {[%clk 0:00:03]}  Qa3+ {[%clk 0:00:12]} 54. Kd4 {[%clk 0:00:02]}  Qc5+ {[%clk 0:00:12]} 55. Ke4 {[%clk 0:00:00]}  Bg2+ {[%clk 0:00:13]} 0-1

[Event "January 2 Late 2024"]
[Site "https://www.chess.com"]
[Date "2024.01.02"]
[Round "2"]
[White "Korchynskyi, Mykola"]
[Black "Souza, Adwilhans Luciano"]
[Result "1-0"]
[Board "124"]
[TimeControl "180+1"]
[WhiteFideId "34138005"]
[BlackFideId "2101793"]
[WhiteElo "2569"]
[BlackElo "2277"]
[WhiteTeam "UKR"]
[BlackTeam "BRA"]
[WhiteClock "0:00:50"]
[BlackClock "0:00:00"]

1. d4 {[%clk 0:02:57]}  Nf6 {[%clk 0:02:59]} 2. c4 {[%clk 0:02:57]}  g6 {[%clk 0:02:57]} 3. Nc3 {[%clk 0:02:58]}  d5 {[%clk 0:02:55]} 4. cxd5 {[%clk 0:02:57]}  Nxd5 {[%clk 0:02:55]} 5. e4 {[%clk 0:02:58]}  Nxc3 {[%clk 0:02:55]} 6. bxc3 {[%clk 0:02:59]}  Bg7 {[%clk 0:02:55]} 7. Nf3 {[%clk 0:02:58]}  O-O {[%clk 0:02:54]} 8. Be3 {[%clk 0:02:58]}  c5 {[%clk 0:02:54]} 9. Rc1 {[%clk 0:02:54]}  cxd4 {[%clk 0:02:53]} 10. Bxd4 {[%clk 0:02:52]}  Bh6 {[%clk 0:02:45]} 11. Rb1 {[%clk 0:02:49]}  Nc6 {[%clk 0:02:44]} 12. Be2 {[%clk 0:02:48]}  Nxd4 {[%clk 0:02:42]} 13. Nxd4 {[%clk 0:02:48]}  b6 {[%clk 0:02:32]} 14. O-O {[%clk 0:02:47]}  Bb7 {[%clk 0:02:32]} 15. Bf3 {[%clk 0:02:47]}  Qc7 {[%clk 0:02:22]} 16. Qb3 {[%clk 0:02:46]}  Rfc8 {[%clk 0:02:08]} 17. Ne2 {[%clk 0:02:34]}  Ba6 {[%clk 0:01:58]} 18. Qa3 {[%clk 0:02:27]}  Bxe2 {[%clk 0:01:54]} 19. Bxe2 {[%clk 0:02:28]}  Qxc3 {[%clk 0:01:53]} 20. Qxe7 {[%clk 0:02:26]}  Re8 {[%clk 0:01:47]} 21. Qb7 {[%clk 0:02:21]}  Qc8 {[%clk 0:01:34]} 22. Qd5 {[%clk 0:02:21]}  Qc7 {[%clk 0:01:26]} 23. Bf3 {[%clk 0:02:19]}  Rad8 {[%clk 0:01:25]} 24. Qb3 {[%clk 0:02:18]}  Re5 {[%clk 0:01:21]} 25. g3 {[%clk 0:02:17]}  Rc5 {[%clk 0:01:20]} 26. Bg2 {[%clk 0:02:16]}  Rd2 {[%clk 0:01:11]} 27. Rbd1 {[%clk 0:02:02]}  Rcc2 {[%clk 0:00:51]} 28. Rxd2 {[%clk 0:02:01]}  Rxd2 {[%clk 0:00:51]} 29. Qa4 {[%clk 0:02:01]}  Qd7 {[%clk 0:00:40]} 30. Qa6 {[%clk 0:01:57]}  Bg7 {[%clk 0:00:36]} 31. h4 {[%clk 0:01:55]}  Bd4 {[%clk 0:00:32]} 32. h5 {[%clk 0:01:51]}  gxh5 {[%clk 0:00:30]} 33. Qc4 {[%clk 0:01:50]}  Bc5 {[%clk 0:00:25]} 34. Qc3 {[%clk 0:01:46]}  Rxa2 {[%clk 0:00:18]} 35. Qf3 {[%clk 0:01:41]}  Qg4 {[%clk 0:00:17]} 36. Qb3 {[%clk 0:01:22]}  Ra3 {[%clk 0:00:16]} 37. Qd5 {[%clk 0:01:14]}  Rxg3 {[%clk 0:00:11]} 38. e5 {[%clk 0:01:14]}  h4 {[%clk 0:00:11]} 39. Kh1 {[%clk 0:01:12]}  Rc3 {[%clk 0:00:06]} 40. Rg1 {[%clk 0:01:02]}  Kh8 {[%clk 0:00:03]} 41. Qd8+ {[%clk 0:01:00]}  Qg8 {[%clk 0:00:00]} 42. Qxh4 {[%clk 0:00:50]} 1-0

[Event "January 2 Late 2024"]
[Site "https://www.chess.com"]
[Date "2024.01.02"]
[Round "2"]
[White "Ottosen, David"]
[Black "Roberson, Peter T"]
[Result "0-1"]
[Board "125"]
[TimeControl "180+1"]
[WhiteFideId "2603080"]
[BlackFideId "412384"]
[WhiteElo "2131"]
[BlackElo "2560"]
[WhiteTeam "CAN"]
[BlackTeam "ENG"]
[WhiteClock "0:01:44"]
[BlackClock "0:01:13"]

1. e4 {[%clk 0:03:00]}  c5 {[%clk 0:02:57]} 2. Nf3 {[%clk 0:03:01]}  d6 {[%clk 0:02:57]} 3. d4 {[%clk 0:03:01]}  cxd4 {[%clk 0:02:58]} 4. Nxd4 {[%clk 0:03:00]}  Nf6 {[%clk 0:02:59]} 5. Nc3 {[%clk 0:03:01]}  Bd7 {[%clk 0:02:59]} 6. Be3 {[%clk 0:03:00]}  Ng4 {[%clk 0:02:59]} 7. Bg5 {[%clk 0:03:00]}  h6 {[%clk 0:02:59]} 8. Bh4 {[%clk 0:03:00]}  g5 {[%clk 0:02:59]} 9. Bg3 {[%clk 0:03:01]}  Bg7 {[%clk 0:02:59]} 10. Be2 {[%clk 0:03:00]}  Ne5 {[%clk 0:02:58]} 11. Nf5 {[%clk 0:03:00]}  Bxf5 {[%clk 0:02:57]} 12. exf5 {[%clk 0:03:00]}  Nbc6 {[%clk 0:02:57]} 13. O-O {[%clk 0:02:59]}  O-O {[%clk 0:02:55]} 14. Nd5 {[%clk 0:02:52]}  e6 {[%clk 0:02:53]} 15. fxe6 {[%clk 0:02:53]}  fxe6 {[%clk 0:02:54]} 16. Ne3 {[%clk 0:02:51]}  d5 {[%clk 0:02:54]} 17. Ng4 {[%clk 0:02:50]}  Nxg4 {[%clk 0:02:54]} 18. Bxg4 {[%clk 0:02:50]}  Qf6 {[%clk 0:02:54]} 19. Re1 {[%clk 0:02:47]}  Qxb2 {[%clk 0:02:51]} 20. Bxe6+ {[%clk 0:02:45]}  Kh8 {[%clk 0:02:51]} 21. Rb1 {[%clk 0:02:43]}  Qxa2 {[%clk 0:02:51]} 22. Rxb7 {[%clk 0:02:42]}  Rae8 {[%clk 0:02:47]} 23. Rc7 {[%clk 0:02:36]}  Nb4 {[%clk 0:01:57]} 24. Rxg7 {[%clk 0:02:32]}  Kxg7 {[%clk 0:01:57]} 25. Qd4+ {[%clk 0:02:29]}  Rf6 {[%clk 0:01:57]} 26. Be5 {[%clk 0:02:21]}  Rxe6 {[%clk 0:01:56]} 27. Bxf6+ {[%clk 0:02:21]}  Rxf6 {[%clk 0:01:57]} 28. Qxb4 {[%clk 0:02:17]}  Qxc2 {[%clk 0:01:54]} 29. Qe7+ {[%clk 0:02:15]}  Rf7 {[%clk 0:01:53]} 30. Qe5+ {[%clk 0:02:14]}  Kg6 {[%clk 0:01:53]} 31. f3 {[%clk 0:02:07]}  Qf5 {[%clk 0:01:47]} 32. Kf2 {[%clk 0:01:57]}  Qxe5 {[%clk 0:01:45]} 33. Rxe5 {[%clk 0:01:57]}  Rf5 {[%clk 0:01:46]} 34. Re7 {[%clk 0:01:54]}  Rf7 {[%clk 0:01:44]} 35. Re5 {[%clk 0:01:53]}  Rd7 {[%clk 0:01:44]} 36. Ke3 {[%clk 0:01:53]}  a5 {[%clk 0:01:39]} 37. Kd4 {[%clk 0:01:52]}  a4 {[%clk 0:01:40]} 38. Re6+ {[%clk 0:01:52]}  Kf5 {[%clk 0:01:30]} 39. Ra6 {[%clk 0:01:53]}  Rb7 {[%clk 0:01:26]} 40. Rxa4 {[%clk 0:01:53]}  Rb2 {[%clk 0:01:26]} 41. h4 {[%clk 0:01:48]}  gxh4 {[%clk 0:01:25]} 42. Kxd5 {[%clk 0:01:48]}  Rd2+ {[%clk 0:01:22]} 43. Rd4 {[%clk 0:01:44]}  Rxd4+ {[%clk 0:01:14]} 44. Kxd4 {[%clk 0:01:44]}  Kf4 {[%clk 0:01:15]} 45. Kd3 {[%clk 0:01:43]}  Kg3 {[%clk 0:01:11]} 46. Ke4 {[%clk 0:01:43]}  Kxg2 {[%clk 0:01:11]} 47. f4 {[%clk 0:01:43]}  h3 {[%clk 0:01:12]} 48. f5 {[%clk 0:01:44]}  h2 {[%clk 0:01:13]} 49. f6 {[%clk 0:01:45]}  h1=Q {[%clk 0:01:13]} 50. f7 {[%clk 0:01:44]}  Qf1 {[%clk 0:01:13]} 0-1

[Event "January 2 Late 2024"]
[Site "https://www.chess.com"]
[Date "2024.01.02"]
[Round "2"]
[White "Keller, Peter"]
[Black "Koc, Przemyslaw"]
[Result "0-1"]
[Board "126"]
[TimeControl "180+1"]
[WhiteFideId "1272105"]
[BlackFideId "1109081"]
[WhiteElo "2208"]
[BlackElo "2515"]
[WhiteTeam "GER"]
[BlackTeam "POL"]
[WhiteClock "0:00:45"]
[BlackClock "0:01:08"]

1. e4 {[%clk 0:03:00]}  c5 {[%clk 0:02:59]} 2. Nf3 {[%clk 0:03:01]}  Nf6 {[%clk 0:02:59]} 3. e5 {[%clk 0:03:01]}  Nd5 {[%clk 0:03:00]} 4. Nc3 {[%clk 0:03:02]}  e6 {[%clk 0:02:59]} 5. Ne4 {[%clk 0:02:51]}  f5 {[%clk 0:02:58]} 6. Nd6+ {[%clk 0:02:35]}  Bxd6 {[%clk 0:02:58]} 7. exd6 {[%clk 0:02:36]}  Qb6 {[%clk 0:02:53]} 8. c4 {[%clk 0:02:31]}  Nf6 {[%clk 0:02:52]} 9. d4 {[%clk 0:02:28]}  Qxd6 {[%clk 0:02:52]} 10. dxc5 {[%clk 0:02:24]}  Qxd1+ {[%clk 0:02:48]} 11. Kxd1 {[%clk 0:02:25]}  Na6 {[%clk 0:02:48]} 12. Be3 {[%clk 0:02:23]}  Ne4 {[%clk 0:02:47]} 13. a3 {[%clk 0:02:14]}  Naxc5 {[%clk 0:02:43]} 14. b4 {[%clk 0:02:15]}  Na6 {[%clk 0:02:39]} 15. c5 {[%clk 0:02:13]}  Nc7 {[%clk 0:02:39]} 16. Bd3 {[%clk 0:01:59]}  Nf6 {[%clk 0:02:34]} 17. Bd4 {[%clk 0:01:55]}  O-O {[%clk 0:02:30]} 18. Kc2 {[%clk 0:01:41]}  Ncd5 {[%clk 0:02:15]} 19. Ne5 {[%clk 0:01:33]}  Rd8 {[%clk 0:01:53]} 20. Nc4 {[%clk 0:01:33]}  Ne8 {[%clk 0:01:44]} 21. Be5 {[%clk 0:01:28]}  b6 {[%clk 0:01:35]} 22. Rhd1 {[%clk 0:01:04]}  Ba6 {[%clk 0:01:35]} 23. cxb6 {[%clk 0:00:58]}  axb6 {[%clk 0:01:34]} 24. Kb3 {[%clk 0:00:56]}  d6 {[%clk 0:01:29]} 25. Bd4 {[%clk 0:00:56]}  Bxc4+ {[%clk 0:01:17]} 26. Bxc4 {[%clk 0:00:55]}  Nec7 {[%clk 0:01:17]} 27. a4 {[%clk 0:00:52]}  Rab8 {[%clk 0:01:09]} 28. a5 {[%clk 0:00:49]}  bxa5 {[%clk 0:01:08]} 29. Rxa5 {[%clk 0:00:45]}  Rxb4+ {[%clk 0:01:08]} 0-1

[Event "January 2 Late 2024"]
[Site "https://www.chess.com"]
[Date "2024.01.02"]
[Round "2"]
[White "Tikhonov, Viacheslav"]
[Black "Dias, Joao Batista"]
[Result "1-0"]
[Board "127"]
[TimeControl "180+1"]
[WhiteFideId "44196407"]
[BlackFideId "2108240"]
[WhiteElo "2486"]
[BlackElo "1990"]
[WhiteTeam "RUS"]
[BlackTeam "BRA"]
[WhiteClock "0:01:16"]
[BlackClock "0:01:27"]

1. d4 {[%clk 0:02:59]}  d5 {[%clk 0:02:59]} 2. c4 {[%clk 0:02:59]}  c6 {[%clk 0:02:58]} 3. Nf3 {[%clk 0:03:00]}  Nf6 {[%clk 0:02:59]} 4. g3 {[%clk 0:03:00]}  g6 {[%clk 0:02:56]} 5. Bg2 {[%clk 0:02:59]}  Bg7 {[%clk 0:02:56]} 6. O-O {[%clk 0:03:00]}  O-O {[%clk 0:02:57]} 7. Nc3 {[%clk 0:03:01]}  Bg4 {[%clk 0:02:57]} 8. Ne5 {[%clk 0:03:00]}  Be6 {[%clk 0:02:53]} 9. Qb3 {[%clk 0:02:59]}  Qb6 {[%clk 0:02:50]} 10. c5 {[%clk 0:02:59]}  Qxb3 {[%clk 0:02:50]} 11. axb3 {[%clk 0:03:00]}  a6 {[%clk 0:02:50]} 12. b4 {[%clk 0:02:42]}  Nbd7 {[%clk 0:02:50]} 13. f4 {[%clk 0:02:38]}  Nxe5 {[%clk 0:02:48]} 14. fxe5 {[%clk 0:02:35]}  Nd7 {[%clk 0:02:45]} 15. e4 {[%clk 0:02:30]}  dxe4 {[%clk 0:02:40]} 16. Nxe4 {[%clk 0:02:31]}  Rad8 {[%clk 0:02:38]} 17. Bg5 {[%clk 0:02:30]}  Rfe8 {[%clk 0:02:32]} 18. Nc3 {[%clk 0:02:15]}  Nf8 {[%clk 0:02:31]} 19. Be3 {[%clk 0:02:12]}  h6 {[%clk 0:02:26]} 20. b5 {[%clk 0:02:05]}  axb5 {[%clk 0:02:26]} 21. Ra7 {[%clk 0:02:02]}  Rb8 {[%clk 0:02:23]} 22. b4 {[%clk 0:02:02]}  Nh7 {[%clk 0:02:20]} 23. d5 {[%clk 0:01:50]}  Bd7 {[%clk 0:01:44]} 24. Rxb7 {[%clk 0:01:29]}  Rxb7 {[%clk 0:01:40]} 25. dxc6 {[%clk 0:01:29]}  Rc7 {[%clk 0:01:34]} 26. cxd7 {[%clk 0:01:29]}  Rxd7 {[%clk 0:01:33]} 27. Bc6 {[%clk 0:01:29]}  Rd3 {[%clk 0:01:33]} 28. Bxe8 {[%clk 0:01:28]}  Rxe3 {[%clk 0:01:33]} 29. Bxf7+ {[%clk 0:01:28]}  Kh8 {[%clk 0:01:31]} 30. Nxb5 {[%clk 0:01:22]}  Bxe5 {[%clk 0:01:30]} 31. c6 {[%clk 0:01:16]}  Rc3 {[%clk 0:01:27]} 32. Nxc3 {[%clk 0:01:16]} 1-0